fUST/lending_fUST_20240612
["ID","MTS","AMOUNT","RATE_DAILY","PERIOD"]
[329127169,1718125845733,-500.0,0.00020547,2]
[329127170,1718125845743,-500.0,0.00020547,2]
[329127171,1718125845753,-500.0,0.00020547,2]
[329127172,1718125845765,-500.0,0.00020547,2]
[329127173,1718125845775,-714.29,0.00020547,2]
[329127174,1718125845786,-500.0,0.00020547,2]
[329127175,1718125845796,-500.0,0.00020547,2]
[329127176,1718125845807,-2830.75,0.00020547,2]
[329127177,1718125845817,-500.0,0.00020547,2]
[329127178,1718125845828,-500.0,0.00020547,2]
[329127179,1718125845843,-505.24136371,0.00020547,2]
[329127180,1718125845855,-500.0,0.00020547,2]
[329127181,1718125845865,-500.0,0.00020547,2]
[329127182,1718125845876,-500.0,0.00020547,2]
[329127183,1718125845887,-500.0,0.00020547,2]
[329127184,1718125845897,-500.0,0.00020547,2]
[329127185,1718125845909,-364.20641032,0.00020547,2]
[329127186,1718125845922,-500.0,0.00020547,2]
[329127187,1718125845933,-500.0,0.00020547,2]
[329127188,1718125845944,-500.0,0.00020547,2]
[329127189,1718125845955,-506.77564398,0.00020547,2]
[329127190,1718125845966,-500.0,0.00020547,2]
[329127191,1718125845976,-500.0,0.00020547,2]
[329127192,1718125845986,-500.0,0.00020547,2]
[329127193,1718125845997,-500.0,0.00020547,2]
[329127194,1718125846007,-500.0,0.00020547,2]
[329127195,1718125846019,-500.0,0.00020547,2]
[329127196,1718125846029,-500.0,0.00020547,2]
[329127197,1718125846040,-568.65281138,0.00020547,2]
[329127198,1718125846051,-502.50622504,0.00020547,2]
[329127199,1718125846064,-500.0,0.00020547,2]
[329127200,1718125846075,-12415.49,0.00020547,2]
[329127201,1718125846086,-502.022016,0.00020547,2]
[329127202,1718125846096,-501.24696847,0.00020547,2]
[329127203,1718125846107,-500.45688317,0.00020547,2]
[329127204,1718125846120,-500.0,0.00020547,2]
[329127205,1718125846131,-1700.75,0.00020547,2]
[329127206,1718125846141,-500.0,0.00020547,2]
[329127207,1718125846152,-500.0,0.00020547,2]
[329127208,1718125846163,-500.0,0.00020547,2]
[329127209,1718125846174,-5742.38,0.00020547,2]
[329127210,1718125846184,-500.0,0.00020547,2]
[329127211,1718125846195,-500.0,0.00020547,2]
[329127212,1718125846205,-500.0,0.00020547,2]
[329127213,1718125846215,-500.0,0.00020547,2]
[329127214,1718125846226,-500.0,0.00020547,2]
[329127215,1718125846236,-500.0,0.00020547,2]
[329127216,1718125846247,-500.0,0.00020547,2]
[329127217,1718125846257,-500.0,0.00020547,2]
[329127219,1718125846267,-500.0,0.00020547,2]
[329127221,1718125846278,-500.0,0.00020547,2]
[329127222,1718125846289,-500.0,0.00020547,2]
[329127223,1718125846300,-500.0,0.00020547,2]
[329127224,1718125846311,-500.0,0.00020547,2]
[329127225,1718125846322,-500.0,0.00020547,2]
[329127226,1718125846333,-500.0,0.00020547,2]
[329127227,1718125846343,-500.0,0.00020547,2]
[329127228,1718125846354,-500.0,0.00020547,2]
[329127229,1718125846365,-501.14,0.00020547,2]
[329127230,1718125846376,-500.0,0.00020547,2]
[329127231,1718125846386,-605.29937364,0.00020547,2]
[329127232,1718125846396,-500.0,0.00020547,2]
[329127233,1718125846408,-500.0,0.00020547,2]
[329127234,1718125846418,-500.0,0.00020547,2]
[329127236,1718125846429,-500.0,0.00020547,2]
[329127238,1718125846439,-500.0,0.00020547,2]
[329127240,1718125846451,-500.0,0.00020547,2]
[329127242,1718125846462,-500.0,0.00020547,2]
[329127244,1718125846472,-619.29,0.00020547,2]
[329127246,1718125846482,-500.0,0.00020547,2]
[329127248,1718125846493,-500.0,0.00020547,2]
[329127250,1718125846503,-510.25044606,0.00020547,2]
[329127251,1718125846513,-623.14,0.00020547,2]
[329127252,1718125846524,-500.0,0.00020547,2]
[329127253,1718125846534,-500.0,0.00020547,2]
[329127254,1718125846545,-500.0,0.00020547,2]
[329127255,1718125846555,-506.76649597,0.00020547,2]
[329127256,1718125846565,-500.0,0.00020547,2]
[329127257,1718125846576,-500.0,0.00020547,2]
[329127259,1718125846586,-500.0,0.00020547,2]
[329127260,1718125846596,-500.0,0.00020547,2]
[329127261,1718125846606,-500.0,0.00020547,2]
[329127262,1718125846617,-500.0,0.00020547,2]
[329127263,1718125846628,-500.0,0.00020547,2]
[329127264,1718125846645,-500.0,0.00020547,2]
[329127265,1718125846657,-500.0,0.00020547,2]
[329127266,1718125846671,-500.0,0.00020547,2]
[329127267,1718125846681,-616.61,0.00020547,2]
[329127268,1718125846692,-500.0,0.00020547,2]
[329127269,1718125846702,-500.0,0.00020547,2]
[329127270,1718125846713,-500.0,0.00020547,2]
[329127271,1718125846724,-500.0,0.00020547,2]
[329127272,1718125846735,-548.64049663,0.00020547,2]
[329127273,1718125846746,-500.0,0.00020547,2]
[329127274,1718125846756,-500.0,0.00020547,2]
[329127275,1718125846767,-500.0,0.00020547,2]
[329127276,1718125846778,-500.0,0.00020547,2]
[329127277,1718125846790,-500.0,0.00020547,2]
[329127278,1718125846801,-500.0,0.00020547,2]
[329127279,1718125846811,-500.0,0.00020547,2]
[329127280,1718125846821,-213.52493226,0.00020547,2]
[329127281,1718125846832,-500.0,0.0002068,2]
[329127282,1718125846848,-2322.25,0.0002068,2]
[329127283,1718125846858,-500.0,0.0002068,2]
[329127284,1718125846868,-500.0,0.0002068,2]
[329127285,1718125846880,-1685.46,0.0002068,2]
[329127286,1718125846890,-1153.58,0.0002068,2]
[329127287,1718125846967,-894.71,0.0002068,2]
[329127288,1718125846978,-500.0,0.0002068,2]
[329127289,1718125846988,-500.0,0.0002068,2]
[329127290,1718125846999,-500.0,0.0002068,2]
[329127291,1718125847009,-500.0,0.0002068,2]
[329127292,1718125847020,-500.0,0.0002068,2]
[329127293,1718125847031,-4342.25,0.0002068,2]
[329127294,1718125847044,-518.02586726,0.0002068,2]
[329127295,1718125847055,-2625.11,0.0002068,2]
[329127296,1718125847065,-500.0,0.0002068,2]
[329127297,1718125847074,-500.0,0.0002068,2]
[329127298,1718125847084,-554.94673723,0.0002068,2]
[329127299,1718125847093,-500.0,0.0002068,2]
[329127300,1718125847103,-500.0,0.0002068,2]
[329127301,1718125847113,-500.0,0.0002068,2]
[329127302,1718125847122,-4028.51,0.0002068,2]
[329127303,1718125847131,-500.0,0.0002068,2]
[329127304,1718125847142,-500.0,0.0002068,2]
[329127305,1718125847152,-500.0,0.00020819,2]
[329127306,1718125847163,-3274.75,0.00020819,2]
[329127307,1718125847173,-500.0,0.00020819,2]
[329127308,1718125847184,-544.11,0.00020821,2]
[329127309,1718125847194,-500.0,0.00020821,2]
[329127311,1718125847204,-500.0,0.00020821,2]
[329127313,1718125847214,-500.0,0.00020821,2]
[329127315,1718125847225,-500.0,0.00020821,2]
[329127317,1718125847234,-500.0,0.00020821,2]
[329127319,1718125847244,-500.0,0.00020821,2]
[329127321,1718125847254,-500.0,0.00020821,2]
[329127323,1718125847265,-500.0,0.00020821,2]
[329127325,1718125847275,-500.0,0.00020821,2]
[329127327,1718125847285,-500.0,0.00020821,2]
[329127329,1718125847296,-500.0,0.00020821,2]
[329127331,1718125847306,-500.0,0.00020821,2]
[329127333,1718125847316,-623.03,0.00020821,2]
[329127335,1718125847326,-257.87376567,0.00020821,2]
[329127336,1718125847336,-223.97059306,0.00020821,2]
[329127338,1718125847347,-500.0,0.00020821,2]
[329127340,1718125847357,-500.0,0.00020821,2]
[329127342,1718125847367,-500.0,0.00020821,2]
[329127344,1718125847377,-2976.92,0.00020821,2]
[329127346,1718125847388,-500.0,0.00020821,2]
[329127348,1718125847398,-500.0,0.00020821,2]
[329127350,1718125847408,-500.0,0.00020821,2]
[329127352,1718125847419,-500.0,0.00020821,2]
[329127354,1718125847430,-508.11249346,0.00020821,2]
[329127356,1718125847440,-500.0,0.00020821,2]
[329127358,1718125847450,-500.0,0.00020821,2]
[329127360,1718125847461,-500.0,0.00020821,2]
[329127362,1718125847471,-500.0,0.00020821,2]
[329127364,1718125847482,-929.83,0.00020821,2]
[329127366,1718125847493,-497.20176544,0.00020821,2]
[329127368,1718125847503,-500.0,0.00020821,2]
[329127370,1718125847514,-500.0,0.00020821,2]
[329127372,1718125847525,-500.0,0.00020821,2]
[329127374,1718125847536,-500.0,0.00020821,2]
[329127376,1718125847546,-500.0,0.00020821,2]
[329127378,1718125847557,-500.0,0.00020821,2]
[329127380,1718125847567,-714.29,0.00020821,2]
[329127382,1718125847577,-500.0,0.00020821,2]
[329127384,1718125847587,-500.0,0.00020821,2]
[329127386,1718125847598,-2830.75,0.00020821,2]
[329127388,1718125847609,-500.0,0.00020821,2]
[329127390,1718125847619,-500.0,0.00020821,2]
[329127392,1718125847629,-500.0,0.00020821,2]
[329127395,1718125847652,-500.0,0.00020821,2]
[329127397,1718125847663,-418.54173744,0.00020821,2]
[329127398,1718125847674,-500.0,0.00020821,2]
[329127400,1718125847684,-500.0,0.00020821,2]
[329127403,1718125847695,-530.59640761,0.00020821,2]
[329127404,1718125847705,-500.0,0.00020821,2]
[329127406,1718125847716,-500.0,0.00020821,2]
[329127408,1718125847726,-500.0,0.00020821,2]
[329127410,1718125847737,-500.0,0.00020821,2]
[329127413,1718125847748,-511.0796972,0.00020821,2]
[329127414,1718125847759,-500.0,0.00020821,2]
[329127416,1718125847770,-500.0,0.00020821,2]
[329127418,1718125847781,-12415.49,0.00020821,2]
[329127420,1718125847793,-500.0,0.00020821,2]
[329127422,1718125847804,-1700.75,0.00020821,2]
[329127424,1718125847815,-500.0,0.00020821,2]
[329127426,1718125847825,-500.0,0.00020821,2]
[329127428,1718125847836,-500.0,0.00020821,2]
[329127431,1718125847853,-5742.38,0.00020821,2]
[329127432,1718125847863,-500.0,0.00020821,2]
[329127434,1718125847874,-500.0,0.00020821,2]
[329127436,1718125847886,-500.0,0.00020821,2]
[329127438,1718125847896,-500.0,0.00020821,2]
[329127440,1718125847907,-537.07737752,0.00020821,2]
[329127442,1718125847920,-500.0,0.00020821,2]
[329127444,1718125847930,-500.0,0.00020821,2]
[329127446,1718125847941,-170.43468331,0.00020821,2]
[329127448,1718125847951,-500.0,0.00020821,2]
[329127450,1718125847961,-500.0,0.00020821,2]
[329127452,1718125847972,-500.0,0.00020821,2]
[329127454,1718125847982,-500.0,0.00020821,2]
[329127456,1718125847992,-500.0,0.00020821,2]
[329127459,1718125848003,-500.0,0.00020821,2]
[329127461,1718125848013,-500.0,0.00020821,2]
[329127463,1718125848024,-500.0,0.00020821,2]
[329127465,1718125848040,-501.14,0.00020821,2]
[329127467,1718125848051,-500.0,0.00020821,2]
[329127468,1718125848061,-500.0,0.00020821,2]
[329127470,1718125848071,-500.0,0.00020821,2]
[329127472,1718125848081,-500.0,0.00020821,2]
[329127473,1718125848090,-500.0,0.00020821,2]
[329127475,1718125848100,-500.0,0.00020821,2]
[329127477,1718125848111,-500.0,0.00020821,2]
[329127478,1718125848121,-500.0,0.00020821,2]
[329127479,1718125848132,-619.29,0.00020821,2]
[329127480,1718125848143,-500.0,0.00020821,2]
[329127481,1718125848153,-500.0,0.00020821,2]
[329127482,1718125848163,-623.14,0.00020821,2]
[329127483,1718125848173,-500.0,0.00020821,2]
[329127484,1718125848184,-500.0,0.00020821,2]
[329127485,1718125848194,-500.0,0.00020821,2]
[329127486,1718125848205,-500.0,0.00020821,2]
[329127487,1718125848216,-500.0,0.00020821,2]
[329127488,1718125848226,-500.0,0.00020821,2]
[329127489,1718125848236,-500.0,0.00020821,2]
[329127490,1718125848246,-500.0,0.00020821,2]
[329127495,1718125848322,-500.0,0.00020821,2]
[329127497,1718125848333,-500.0,0.00020821,2]
[329127499,1718125848344,-500.0,0.00020821,2]
[329127500,1718125848355,-500.0,0.00020821,2]
[329127501,1718125848365,-616.61,0.00020821,2]
[329127502,1718125848377,-500.0,0.00020821,2]
[329127503,1718125848387,-500.0,0.00020821,2]
[329127504,1718125848398,-500.0,0.00020821,2]
[329127505,1718125848409,-500.0,0.00020821,2]
[329127506,1718125848419,-500.0,0.00020821,2]
[329127507,1718125848429,-500.0,0.00020821,2]
[329127509,1718125848440,-500.0,0.00020821,2]
[329127511,1718125848451,-500.0,0.00020821,2]
[329127513,1718125848462,-500.0,0.00020821,2]
[329127515,1718125848472,-502.47547324,0.00020821,2]
[329127517,1718125848482,-500.0,0.00020821,2]
[329127519,1718125848493,-500.0,0.00020877,2]
[329127521,1718125848503,-500.0,0.00020877,2]
[329127523,1718125848513,-500.0,0.00020877,2]
[329127525,1718125848525,-662.33880165,0.000209,2]
[329127527,1718125848535,-500.0,0.00020954,2]
[329127529,1718125848550,-2322.25,0.00020954,2]
[329127531,1718125848560,-545.33487208,0.00020954,2]
[329127533,1718125848571,-500.0,0.00020954,2]
[329127535,1718125848581,-1685.46,0.00020954,2]
[329127537,1718125848592,-1153.58,0.00020954,2]
[329127539,1718125848603,-894.71,0.00020954,2]
[329127541,1718125848614,-500.0,0.00020954,2]
[329127543,1718125848624,-500.0,0.00020954,2]
[329127545,1718125848638,-500.0,0.00020954,2]
[329127547,1718125848652,-500.0,0.00020954,2]
[329127549,1718125848663,-4342.25,0.00020954,2]
[329127551,1718125848674,-2625.11,0.00020954,2]
[329127553,1718125848685,-500.0,0.00020954,2]
[329127555,1718125848695,-500.0,0.00020954,2]
[329127557,1718125848707,-500.0,0.00020954,2]
[329127559,1718125848718,-500.0,0.00020954,2]
[329127561,1718125848729,-500.0,0.00020954,2]
[329127563,1718125848740,-4028.51,0.00020954,2]
[329127565,1718125848752,-500.0,0.00020954,2]
[329127567,1718125848763,-500.0,0.00020954,2]
[329127569,1718125848774,-500.0,0.00020999,2]
[329127571,1718125848785,-500.0,0.00020999,2]
[329127573,1718125848804,-500.0,0.00020999,2]
[329127575,1718125848814,-500.0,0.00020999,2]
[329127577,1718125848824,-500.0,0.00020999,2]
[329127579,1718125848836,-500.0,0.00020999,2]
[329127581,1718125848848,-500.0,0.00020999,2]
[329127583,1718125848858,-500.0,0.00020999,2]
[329127584,1718125848869,-613.15770546,0.00020999,2]
[329127587,1718125848880,-500.0,0.00020999,2]
[329127588,1718125848891,-500.0,0.00020999,2]
[329127590,1718125848901,-500.0,0.00020999,2]
[329127592,1718125848913,-500.0,0.00020999,2]
[329127594,1718125848926,-500.0,0.00020999,2]
[329127596,1718125848936,-517.18,0.00020999,2]
[329127598,1718125848947,-656.6,0.00020999,2]
[329127600,1718125848961,-500.0,0.00020999,2]
[329127602,1718125848971,-500.0,0.00020999,2]
[329127604,1718125848982,-500.0,0.00020999,2]
[329127606,1718125848993,-1659.44,0.00020999,2]
[329127608,1718125849004,-500.0,0.00020999,2]
[329127610,1718125849014,-4966.46,0.00020999,2]
[329127612,1718125849025,-500.0,0.00020999,2]
[329127613,1718125849036,-1263.45,0.00020999,2]
[329127615,1718125849052,-264.16649717,0.00020999,2]
[329127617,1718125849062,-643.37,0.00020999,2]
[329127619,1718125849072,-500.0,0.00020999,2]
[329127621,1718125849083,-7269.5959632,0.00021,2]
[329127623,1718125849094,-471.19093909,0.00021,2]
[329127625,1718125849104,-394.12424459,0.00021,2]
[329127627,1718125849114,-3274.75,0.00021093,2]
[329127629,1718125849124,-500.0,0.00021093,2]
[329127631,1718125849134,-544.11,0.00021095,2]
[329127633,1718125849143,-527.77124211,0.00021095,2]
[329127635,1718125849154,-500.0,0.00021095,2]
[329127637,1718125849164,-500.0,0.00021095,2]
[329127639,1718125849175,-500.0,0.00021095,2]
[329127641,1718125849186,-500.0,0.00021095,2]
[329127643,1718125849197,-500.0,0.00021095,2]
[329127645,1718125849208,-500.0,0.00021095,2]
[329127647,1718125849218,-500.0,0.00021095,2]
[329127649,1718125849228,-611.39037659,0.00021095,2]
[329127651,1718125849244,-623.03,0.00021095,2]
[329127653,1718125849255,-500.0,0.00021095,2]
[329127655,1718125849265,-500.0,0.00021095,2]
[329127657,1718125849275,-500.0,0.00021095,2]
[329127658,1718125849286,-2976.92,0.00021095,2]
[329127660,1718125849298,-500.0,0.00021095,2]
[329127662,1718125849309,-500.0,0.00021095,2]
[329127665,1718125849321,-300.0,0.00021095,2]
[329127667,1718125849333,-500.0,0.00021095,2]
[329127669,1718125849344,-500.0,0.00021095,2]
[329127671,1718125849355,-418.80939304,0.00021095,2]
[329127672,1718125849365,-563.5055665,0.00021095,2]
[329127674,1718125849376,-500.0,0.00021095,2]
[329127676,1718125849385,-929.83,0.00021095,2]
[329127677,1718125849396,-500.0,0.00021095,2]
[329127678,1718125849406,-500.0,0.00021095,2]
[329127679,1718125849416,-500.0,0.00021095,2]
[329127680,1718125849426,-500.0,0.00021095,2]
[329127681,1718125849436,-500.0,0.00021095,2]
[329127682,1718125849447,-714.29,0.00021095,2]
[329127683,1718125849457,-500.0,0.00021095,2]
[329127685,1718125849467,-541.75930841,0.00021095,2]
[329127687,1718125849478,-2830.75,0.00021095,2]
[329127689,1718125849488,-500.0,0.00021095,2]
[329127691,1718125849498,-500.0,0.00021095,2]
[329127693,1718125849509,-500.0,0.00021095,2]
[329127695,1718125849519,-500.0,0.00021095,2]
[329127697,1718125849529,-500.0,0.00021095,2]
[329127699,1718125849542,-500.0,0.00021095,2]
[329127701,1718125849615,-500.0,0.00021095,2]
[329127702,1718125849626,-500.0,0.00021095,2]
[329127703,1718125849637,-500.0,0.00021095,2]
[329127704,1718125849655,-500.0,0.00021095,2]
[329127705,1718125849666,-500.0,0.00021095,2]
[329127706,1718125849676,-12415.49,0.00021095,2]
[329127707,1718125849687,-500.0,0.00021095,2]
[329127708,1718125849697,-1700.75,0.00021095,2]
[329127709,1718125849707,-500.0,0.00021095,2]
[329127710,1718125849717,-500.0,0.00021095,2]
[329127711,1718125849727,-500.0,0.00021095,2]
[329127712,1718125849737,-5742.38,0.00021095,2]
[329127713,1718125849747,-500.0,0.00021095,2]
[329127714,1718125849758,-500.0,0.00021095,2]
[329127715,1718125849769,-500.0,0.00021095,2]
[329127716,1718125849779,-500.0,0.00021095,2]
[329127717,1718125849791,-500.0,0.00021095,2]
[329127718,1718125849801,-506.94979493,0.00021095,2]
[329127719,1718125849811,-500.0,0.00021095,2]
[329127720,1718125849820,-500.0,0.00021095,2]
[329127721,1718125849829,-500.0,0.00021095,2]
[329127723,1718125849840,-500.0,0.00021095,2]
[329127724,1718125849853,-500.0,0.00021095,2]
[329127725,1718125849864,-500.0,0.00021095,2]
[329127726,1718125849874,-500.0,0.00021095,2]
[329127727,1718125849885,-501.14,0.00021095,2]
[329127728,1718125849895,-500.0,0.00021095,2]
[329127729,1718125849904,-312.84819508,0.00021095,2]
[329127730,1718125849914,-500.0,0.00021095,2]
[329127731,1718125849927,-500.0,0.00021095,2]
[329127732,1718125849937,-500.0,0.00021095,2]
[329127733,1718125849947,-500.0,0.00021095,2]
[329127734,1718125849958,-500.0,0.00021095,2]
[329127735,1718125849968,-500.0,0.00021095,2]
[329127736,1718125849978,-619.29,0.00021095,2]
[329127737,1718125849987,-500.0,0.00021095,2]
[329127738,1718125849997,-623.14,0.00021095,2]
[329127739,1718125850006,-500.0,0.00021095,2]
[329127740,1718125850017,-500.0,0.00021095,2]
[329127741,1718125850026,-500.0,0.00021095,2]
[329127742,1718125850036,-500.0,0.00021095,2]
[329127744,1718125850047,-500.0,0.00021095,2]
[329127746,1718125850057,-500.0,0.00021095,2]
[329127748,1718125850067,-500.0,0.00021095,2]
[329127750,1718125850077,-500.0,0.00021095,2]
[329127752,1718125850086,-500.0,0.00021095,2]
[329127754,1718125850096,-500.0,0.00021095,2]
[329127756,1718125850106,-548.51672985,0.00021095,2]
[329127758,1718125850115,-616.61,0.00021095,2]
[329127760,1718125850126,-500.0,0.00021095,2]
[329127762,1718125850135,-500.0,0.00021095,2]
[329127764,1718125850145,-500.0,0.00021095,2]
[329127765,1718125850155,-500.0,0.00021095,2]
[329127767,1718125850165,-351.840964,0.00021095,2]
[329127769,1718125850174,-300.0,0.00021095,2]
[329127771,1718125850184,-500.0,0.00021095,2]
[329127773,1718125850194,-351.840964,0.00021095,2]
[329127775,1718125850204,-2322.25,0.00021228,2]
[329127777,1718125850215,-500.0,0.00021228,2]
[329127779,1718125850225,-1685.46,0.00021228,2]
[329127781,1718125850236,-1153.58,0.00021228,2]
[329127783,1718125850246,-894.71,0.00021228,2]
[329127785,1718125850256,-500.0,0.00021228,2]
[329127786,1718125850267,-500.0,0.00021228,2]
[329127787,1718125850277,-500.0,0.00021228,2]
[329127788,1718125850289,-500.0,0.00021228,2]
[329127789,1718125850300,-4342.25,0.00021228,2]
[329127790,1718125850310,-2625.11,0.00021228,2]
[329127791,1718125850320,-500.0,0.00021228,2]
[329127792,1718125850330,-500.0,0.00021228,2]
[329127793,1718125850340,-500.0,0.00021228,2]
[329127794,1718125850350,-500.0,0.00021228,2]
[329127795,1718125850361,-4028.51,0.00021228,2]
[329127796,1718125850371,-500.0,0.00021228,2]
[329127797,1718125850381,-500.0,0.00021228,2]
[329127798,1718125850391,-883.2,0.00021232,2]
[329127799,1718125850401,-602.96908345,0.00021273,2]
[329127800,1718125850411,-500.0,0.00021273,2]
[329127801,1718125850421,-500.0,0.00021273,2]
[329127802,1718125850431,-500.0,0.00021273,2]
[329127803,1718125850441,-500.0,0.00021273,2]
[329127804,1718125850451,-500.0,0.00021273,2]
[329127805,1718125850461,-500.0,0.00021273,2]
[329127806,1718125850471,-200.78800434,0.00021273,2]
[329127807,1718125850481,-500.0,0.00021273,2]
[329127808,1718125850491,-500.0,0.00021273,2]
[329127809,1718125850501,-500.0,0.00021273,2]
[329127810,1718125850511,-500.0,0.00021273,2]
[329127811,1718125850521,-500.0,0.00021273,2]
[329127812,1718125850530,-517.18,0.00021273,2]
[329127813,1718125850542,-656.6,0.00021273,2]
[329127814,1718125850552,-500.0,0.00021273,2]
[329127815,1718125850562,-500.0,0.00021273,2]
[329127816,1718125850572,-1659.44,0.00021273,2]
[329127817,1718125850584,-500.0,0.00021273,2]
[329127818,1718125850595,-500.0,0.00021273,2]
[329127819,1718125850605,-1263.45,0.00021273,2]
[329127820,1718125850615,-643.37,0.00021273,2]
[329127821,1718125850626,-500.0,0.00021273,2]
[329127822,1718125850636,-1262.89003597,0.00021315,2]
[329127823,1718125850652,-28865.11288659,0.00021318,2]
[329127824,1718125850662,-16482.30194926,0.00021319,2]
[329127825,1718125850671,-1262.89003597,0.00021322,2]
[329127826,1718125850741,-5322.26622453,0.00021329,2]
[329127827,1718125850751,-7339.82553371,0.00021331,2]
[329127829,1718125850761,-28865.11288659,0.00021339,2]
[329127831,1718125850771,-16482.30194926,0.00021344,2]
[329127833,1718125850782,-28865.11288659,0.00021345,2]
[329127835,1718125850793,-10402.69639713,0.00021346,2]
[329127837,1718125850804,-5322.26622453,0.00021348,2]
[329127839,1718125850814,-1262.89003597,0.0002135,2]
[329127842,1718125850825,-1262.89003597,0.00021351,2]
[329127844,1718125850837,-16482.30194926,0.00021358,2]
[329127846,1718125850848,-10402.69639713,0.00021359,2]
[329127848,1718125850858,-10402.69639713,0.0002136,2]
[329127850,1718125850868,-7339.82553371,0.00021361,2]
[329127852,1718125850879,-16482.30194926,0.00021365,2]
[329127854,1718125850888,-5322.26622453,0.00021367,2]
[329127856,1718125850899,-3274.75,0.00021367,2]
[329127858,1718125850909,-500.0,0.00021367,2]
[329127860,1718125850921,-1262.89003597,0.00021369,2]
[329127862,1718125850931,-544.11,0.00021369,2]
[329127864,1718125850940,-500.0,0.00021369,2]
[329127866,1718125850950,-621.872188,0.00021369,2]
[329127868,1718125850960,-500.0,0.00021369,2]
[329127870,1718125850969,-500.0,0.00021369,2]
[329127871,1718125850979,-500.0,0.00021369,2]
[329127873,1718125850989,-421.790358,0.00021369,2]
[329127875,1718125850998,-623.03,0.00021369,2]
[329127877,1718125851009,-500.0,0.00021369,2]
[329127879,1718125851020,-518.53561094,0.00021369,2]
[329127881,1718125851030,-2976.92,0.00021369,2]
[329127883,1718125851043,-500.0,0.00021369,2]
[329127885,1718125851053,-500.0,0.00021369,2]
[329127887,1718125851063,-443.05006874,0.00021369,2]
[329127889,1718125851073,-500.0,0.00021369,2]
[329127891,1718125851084,-500.0,0.00021369,2]
[329127893,1718125851094,-929.83,0.00021369,2]
[329127895,1718125851105,-500.0,0.00021369,2]
[329127897,1718125851115,-500.0,0.00021369,2]
[329127899,1718125851126,-500.0,0.00021369,2]
[329127901,1718125851137,-500.0,0.00021369,2]
[329127903,1718125851147,-500.0,0.00021369,2]
[329127905,1718125851157,-714.29,0.00021369,2]
[329127907,1718125851167,-2830.75,0.00021369,2]
[329127909,1718125851178,-500.0,0.00021369,2]
[329127911,1718125851188,-500.0,0.00021369,2]
[329127913,1718125851198,-500.0,0.00021369,2]
[329127915,1718125851208,-500.0,0.00021369,2]
[329127917,1718125851218,-500.0,0.00021369,2]
[329127919,1718125851228,-500.0,0.00021369,2]
[329127922,1718125851245,-500.0,0.00021369,2]
[329127925,1718125851266,-500.0,0.00021369,2]
[329127928,1718125851284,-500.0,0.00021369,2]
[329127931,1718125851306,-500.0,0.00021369,2]
[329127934,1718125851328,-12415.49,0.00021369,2]
[329127937,1718125851346,-1700.75,0.00021369,2]
[329127940,1718125851365,-500.0,0.00021369,2]
[329127942,1718125851381,-500.0,0.00021369,2]
[329127945,1718125851398,-500.0,0.00021369,2]